bitfinex/quotes_SOLUSD_20250902
["timestamp","ask_amount","ask_price","bid_price","bid_amount"]
[1756789633869,38.68,202.65,202.59,0.68]
[1756789634372,38.68,202.65,202.59,5.61601427]
[1756789634578,38.68,202.65,202.6,0.68]
[1756789634758,43.61466186,202.65,202.61,0.68]
[1756789635175,38.68,202.65,202.61,0.68]
[1756789635385,38.68,202.65,202.59,0.68]
[1756789635787,38.68,202.65,202.6,4.93583415]
[1756789635959,38.68,202.65,202.61,0.68]
[1756789636754,2.57667273,202.68,202.6,4.93583415]
[1756789636955,4.14700726,202.7,202.61,4.19369678]
[1756789637164,38.68,202.69,202.62,3.51369678]
[1756789637369,38.68,202.69,202.63,0.68]
[1756789638268,0.06,202.71,202.64,4.93485984]
[1756789638471,38.72,202.71,202.65,0.68]
[1756789640372,0.06,202.71,202.66,8.44806962]
[1756789640575,0.06,202.71,202.67,0.68]
[1756789640754,0.06,202.71,202.67,4.19369678]
[1756789640958,0.06,202.71,202.68,0.68]
[1756789641179,0.06,202.71,202.68,4.19369678]
[1756789641368,0.06,202.71,202.68,0.68]
[1756789641581,0.06,202.71,202.69,0.68]
[1756789642065,0.06,202.71,202.64,0.68]
[1756789642401,26.0,202.67,202.61,0.68]
[1756789642596,38.92,202.66,202.58,0.68]
[1756789642766,26.0,202.63,202.52,3.51369678]
[1756789643079,26.0,202.63,202.56,5.64671956]
[1756789643278,26.0,202.63,202.57,0.68]
[1756789643576,64.72,202.66,202.58,17.10929079]
[1756789643879,64.72,202.66,202.59,0.68]
[1756789644468,64.72,202.66,202.6,4.93583415]
[1756789644777,64.72,202.66,202.6,5.61583415]
[1756789644976,69.87447758,202.66,202.58,0.68]
[1756789645182,69.87447758,202.66,202.58,74.68]
[1756789645865,26.0,202.66,202.58,74.0]
[1756789646066,26.0,202.66,202.59,0.68]
[1756789646261,26.0,202.66,202.58,74.0]
[1756789646262,30.9343997,202.66,202.58,74.0]
[1756789646479,0.22,202.65,202.58,74.0]
[1756789646880,4.93485984,202.64,202.58,74.0]
[1756789647190,26.0,202.66,202.59,0.68]
[1756789647577,26.0,202.66,202.59,4.19369678]
[1756789647776,26.0,202.66,202.6,0.68]
[1756789649188,4.20700726,202.71,202.63,17.10929079]
[1756789649372,64.8,202.71,202.64,0.68]
[1756789649890,0.06,202.71,202.67,3.51369678]
[1756789650082,0.06,202.71,202.68,0.68]
[1756789650587,0.06,202.71,202.69,0.68]
[1756789650881,0.06,202.71,202.68,0.68]
[1756789651469,0.06,202.71,202.69,0.68]
[1756789652280,0.06,202.71,202.7,0.68]
[1756789653488,0.06,202.71,202.7,5.61339911]
[1756789654391,0.06,202.71,202.7,0.68]
[1756789655170,0.06,202.71,202.7,5.61339911]
[1756789655691,0.06,202.71,202.7,13.98066768]
[1756789655875,0.06,202.71,202.7,27.57626169]
[1756789657593,0.06,202.71,202.67,1.976529]
[1756789657897,0.06,202.71,202.67,2.666529]
[1756789658070,0.06,202.71,202.68,0.69]
[1756789658469,0.06,202.71,202.69,0.69]
[1756789658670,0.06,202.71,202.69,5.62350882]
[1756789659189,0.06,202.71,202.7,0.69]
[1756789659870,0.06,202.71,202.68,117.71385338]
[1756789660070,0.06,202.71,202.68,118.40385338]
[1756789660270,0.06,202.71,202.69,0.69]
[1756789660882,0.06,202.71,202.69,5.62362669]
[1756789661196,0.06,202.71,202.68,74.0]
[1756789661377,0.06,202.71,202.68,74.69]
[1756789661577,0.06,202.71,202.69,0.69]
[1756789661979,0.22,202.7,202.68,74.0]
[1756789662287,0.22,202.69,202.62,0.69]
[1756789662785,0.22,202.69,202.6,13.59559401]
[1756789662786,4.93388592,202.68,202.54,0.03]
[1756789663093,4.93388592,202.68,202.6,39.49]
[1756789663296,4.93388592,202.68,202.61,39.49]
[1756789663899,31.15368325,202.69,202.61,0.69]
[1756789664209,31.15368325,202.69,202.61,39.47]
[1756789664609,30.93368325,202.69,202.62,0.69]
[1756789664782,31.15368325,202.69,202.62,5.62527344]
[1756789665177,31.15368325,202.69,202.62,79.62527344]
[1756789666312,31.15368325,202.69,202.62,79.65527344]
[1756789667109,31.15368325,202.69,202.62,74.72]
[1756789667411,31.15368325,202.69,202.62,74.03]
[1756789667412,0.22,202.68,202.62,74.03]
[1756789668705,4.93412937,202.67,202.62,74.03]
[1756789668899,5.15412937,202.67,202.62,74.03]
[1756789669418,4.93412937,202.67,202.62,74.72]
[1756789669718,5.15412937,202.67,202.62,74.03]
[1756789670195,5.15412937,202.67,202.62,0.03]
[1756789670516,0.22,202.66,202.62,0.03]
[1756789670700,4.93510339,202.63,202.62,0.03]
[1756789671106,5.15510339,202.63,202.62,0.03]
[1756789672917,43.95510339,202.63,202.62,0.03]
[1756789678416,43.73510339,202.63,202.62,0.03]
[1756789680018,69.67510339,202.63,202.62,0.03]
[1756789680913,38.72,202.64,202.62,0.03]
[1756789681734,4.93510339,202.63,202.62,0.03]
[1756789683826,5.15510339,202.63,202.62,0.03]
[1756789684232,4.93510339,202.63,202.62,0.03]
[1756789691342,26.0,202.6,202.59,0.03]
[1756789691540,64.7,202.6,202.59,0.03]
[1756789692337,69.63583415,202.6,202.59,0.03]
[1756789693640,30.93583415,202.6,202.59,0.03]
[1756789693845,30.93583415,202.6,202.59,0.7]
[1756789694147,69.59583415,202.6,202.59,0.7]
[1756789694743,38.66,202.6,202.59,0.7]
[1756789696044,2.57649368,202.65,202.59,0.7]
[1756789696238,38.66,202.65,202.59,0.7]
[1756789696437,26.0,202.62,202.59,0.7]
[1756789697837,38.62,202.65,202.59,0.7]
[1756789698041,43.55474545,202.65,202.59,0.7]
[1756789699330,43.55474545,202.65,202.59,5.6359764]
[1756789699655,43.55474545,202.65,202.6,0.67]
[1756789700842,43.55474545,202.65,202.6,74.67]
[1756789701156,43.55474545,202.65,202.61,0.67]
[1756789701354,26.0,202.63,202.62,0.67]
[1756789702842,26.0,202.62,202.59,0.03]
[1756789703048,69.53510339,202.63,202.59,0.03]
[1756789703255,26.0,202.6,202.59,0.03]
[1756789703554,30.93583415,202.6,202.59,0.03]
[1756789704338,5.15583415,202.6,202.59,0.03]
[1756789705460,4.93583415,202.6,202.59,0.03]
[1756789705961,43.51583415,202.6,202.59,0.03]
[1756789706263,64.62,202.6,202.59,0.7]
[1756789706563,64.6,202.6,202.59,0.7]
[1756789709143,0.06,202.65,202.59,0.7]
[1756789709552,26.0,202.61,202.59,0.03]
[1756789709747,64.6,202.61,202.59,0.03]
[1756789710546,38.6,202.61,202.59,0.03]
[1756789711545,4.93583415,202.6,202.59,0.03]
[1756789716772,43.53559054,202.61,202.59,0.69]
[1756789717158,43.53559054,202.61,202.59,0.03]
[1756789717464,47.89250001,202.61,202.59,0.03]
[1756789719052,47.67250001,202.61,202.59,0.03]
[1756789719257,4.13690947,202.6,202.59,0.03]
[1756789720253,9.07274362,202.6,202.59,0.03]
[1756789720575,43.63583415,202.6,202.59,0.69]
[1756789721065,64.72,202.6,202.59,0.69]
[1756789721274,64.72,202.6,202.59,0.03]
[1756789721474,69.65583415,202.6,202.59,0.03]
[1756789721989,43.87583415,202.6,202.59,0.03]
[1756789722150,4.93632145,202.58,202.57,0.03]
[1756789722352,43.67632145,202.58,202.57,0.03]
[1756789723252,43.67632145,202.58,202.56,0.03]
[1756789723444,45.65549045,202.58,202.56,0.03]
[1756789723650,43.67632145,202.58,202.56,0.03]
[1756789730969,43.89632145,202.58,202.56,0.03]
[1756789731258,43.67632145,202.58,202.56,0.03]
[1756789731768,26.0,202.55,202.48,74.0]
[1756789732076,26.0,202.51,202.5,0.66]
[1756789732382,64.68,202.51,202.5,0.66]
[1756789735566,38.66,202.52,202.5,0.66]
[1756789735767,26.0,202.55,202.5,0.66]
[1756789735967,38.64,202.54,202.5,0.66]
[1756789737489,43.57749818,202.54,202.51,0.66]
[1756789737702,43.57749818,202.54,202.52,0.66]
[1756789738286,38.64,202.54,202.53,0.66]
[1756789738690,38.62,202.54,202.53,0.66]
[1756789741980,4.93720232,202.55,202.53,0.66]
[1756789742189,38.6,202.54,202.53,0.66]
[1756789742988,26.0,202.51,202.49,0.03]
[1756789743179,38.6,202.5,202.49,0.03]
[1756789743371,67.93431957,202.5,202.27,20.0]
[1756789743578,4.93949123,202.45,202.41,0.66]
[1756789743788,38.64,202.44,202.41,0.66]
[1756789744173,38.64,202.44,202.36,4.94160547]
[1756789744174,4.93949123,202.45,202.37,4.94141239]
[1756789744371,38.64,202.44,202.38,0.66]
[1756789744773,26.0,202.46,202.38,2.91050296]
[1756789744974,38.66,202.45,202.39,0.66]
[1756789745991,2.57783825,202.49,202.4,4.94071146]
[1756789746177,38.64,202.48,202.41,0.69]
[1756789746988,26.0,202.45,202.41,0.69]
[1756789747184,64.66,202.45,202.41,0.69]
[1756789749593,64.66,202.45,202.41,5.63042261]
[1756789749799,64.66,202.45,202.42,0.69]
[1756789749987,64.66,202.45,202.43,0.69]
[1756789751397,64.66,202.45,202.44,0.69]
[1756789752775,4.93855019,202.49,202.44,0.69]
[1756789753005,64.6,202.48,202.44,0.69]
[1756789753801,0.22,202.47,202.41,0.69]
[1756789753990,38.6,202.46,202.41,0.69]
[1756789754187,38.6,202.46,202.39,4.94095558]
[1756789754385,38.6,202.46,202.42,0.69]
[1756789754904,38.6,202.46,202.43,0.69]
[1756789755298,38.6,202.46,202.39,4.94095558]
[1756789755502,38.6,202.46,202.43,0.69]
[1756789756116,26.0,202.43,202.36,0.69]
[1756789756288,38.58,202.42,202.36,0.69]
[1756789756481,5.00881115,202.45,202.36,0.69]
[1756789756688,26.0,202.41,202.36,0.69]
[1756789756910,64.74,202.41,202.37,0.69]
[1756789757096,64.74,202.41,202.33,13.59559401]
[1756789757297,64.74,202.41,202.35,0.69]
[1756789757503,69.68067255,202.41,202.35,0.69]
[1756789758093,64.74,202.41,202.35,5.63187878]
[1756789758412,69.68053991,202.41,202.36,0.69]
[1756789758989,26.0,202.41,202.37,0.69]
[1756789759193,64.74,202.41,202.38,0.69]
[1756789760612,69.68050136,202.41,202.36,74.72]
[1756789761311,69.68050136,202.41,202.36,0.72]
[1756789761506,69.90050136,202.41,202.36,0.72]
[1756789763313,0.22,202.4,202.36,0.03]
[1756789763623,38.72,202.39,202.36,0.03]
[1756789764497,43.66114105,202.39,202.36,0.03]
[1756789766423,26.0,202.37,202.36,0.03]
[1756789766629,64.72,202.37,202.36,0.03]
[1756789766929,64.7,202.37,202.36,0.03]
[1756789767130,64.92,202.37,202.36,0.03]
[1756789767711,69.86144388,202.37,202.36,0.03]
[1756789769812,31.16144388,202.37,202.36,0.03]
[1756789770026,69.90144388,202.37,202.36,0.03]
[1756789771130,83.49703789,202.37,202.36,1e-08]
[1756789771421,26.0,202.33,202.27,0.69]
[1756789772121,38.76,202.32,202.27,0.69]
[1756789772504,38.76,202.32,202.24,8.46490152]
[1756789772714,26.0,202.33,202.28,0.69]
[1756789773325,38.76,202.32,202.28,0.69]
[1756789773524,26.0,202.35,202.28,0.69]
[1756789773816,0.22,202.4,202.31,3.52033012]
[1756789773997,38.78,202.37,202.32,0.69]
[1756789774193,4.94022329,202.42,202.32,4.21033012]
[1756789774194,19.79575329,202.42,202.32,4.21033012]
[1756789774394,38.78,202.41,202.33,0.69]
[1756789774623,38.78,202.4,202.33,4.21033012]
[1756789774821,69.72072115,202.4,202.34,0.69]
[1756789775504,43.72072115,202.4,202.34,0.69]
[1756789775825,69.72072115,202.4,202.34,0.69]
[1756789776628,26.0,202.4,202.34,0.69]
[1756789776928,38.78,202.39,202.34,79.63206006]
[1756789777112,38.78,202.38,202.35,0.71]
[1756789777310,38.78,202.38,202.36,0.71]
[1756789777533,38.78,202.38,202.37,0.71]
[1756789777750,11.13675997,202.48,202.38,13.59559401]
[1756789778031,14.851853,202.47,202.42,3.52033012]
[1756789778197,14.851853,202.47,202.39,14.30559401]
[1756789778198,0.06,202.54,202.44,13.59559401]
[1756789778398,15.14,202.53,202.45,3.52033012]
[1756789778626,26.0,202.5,202.46,5.64917838]
[1756789778827,26.0,202.5,202.47,0.71]
[1756789779000,0.06,202.54,202.48,0.71]
[1756789779612,0.06,202.54,202.49,3.52033012]
[1756789779830,0.06,202.54,202.5,0.71]
[1756789780233,0.06,202.54,202.51,0.71]
[1756789780614,0.06,202.54,202.48,3.52033012]
[1756789780615,0.06,202.54,202.52,0.71]
[1756789781427,0.06,202.54,202.48,74.71]
[1756789781631,0.06,202.54,202.49,0.71]
[1756789782729,0.06,202.54,202.5,0.71]
[1756789786004,0.06,202.54,202.48,74.0]
[1756789786298,0.06,202.54,202.49,0.71]
[1756789786506,0.06,202.54,202.5,0.71]
[1756789787431,0.06,202.54,202.51,0.71]
[1756789787805,0.06,202.54,202.48,74.0]
[1756789788001,26.0,202.52,202.48,0.71]
[1756789788205,26.0,202.52,202.49,0.71]
[1756789788612,26.0,202.52,202.45,3.52033012]
[1756789788811,26.0,202.52,202.49,0.71]
[1756789789231,30.93798844,202.52,202.49,0.71]
[1756789791405,43.69824162,202.51,202.49,0.71]
[1756789792041,38.76,202.51,202.5,0.71]
[1756789792843,43.69802775,202.51,202.5,0.71]
[1756789793036,38.76,202.51,202.5,0.71]
[1756789794753,0.06,202.54,202.5,0.71]
[1756789795651,0.06,202.54,202.5,5.64819414]
[1756789795827,0.06,202.54,202.51,0.71]
[1756789797150,0.06,202.54,202.5,4.93819414]
[1756789797362,0.06,202.54,202.52,0.71]
[1756789797724,0.06,202.54,202.53,0.71]
[1756789800235,0.06,202.54,202.53,4.23033012]
[1756789800649,0.06,202.54,202.53,0.71]
[1756789801756,0.06,202.54,202.5,0.71]
[1756789801952,0.06,202.54,202.51,0.71]
[1756789802623,0.06,202.54,202.52,0.71]
[1756789803047,4.99729633,202.54,202.52,0.71]
[1756789805958,0.06,202.54,202.48,8.45902576]
[1756789806128,0.06,202.54,202.53,0.67]
[1756789808249,0.06,202.54,202.53,5.60754011]
[1756789809848,0.06,202.54,202.53,22.72346424]
[1756789810041,0.06,202.54,202.53,0.67]
[1756789810852,0.06,202.54,202.49,13.59559401]
[1756789811048,0.06,202.54,202.51,0.67]
[1756789811350,0.06,202.54,202.48,13.59559401]
[1756789811548,0.06,202.54,202.5,0.67]
[1756789812054,0.06,202.54,202.5,74.67]
[1756789812351,0.06,202.54,202.51,0.67]
[1756789812677,0.06,202.54,202.52,0.67]
[1756789814139,0.06,202.54,202.5,74.0]
[1756789814334,0.06,202.54,202.51,0.67]
[1756789815260,0.06,202.54,202.51,5.60800389]
[1756789815568,0.06,202.54,202.52,4.19033012]
[1756789815733,0.06,202.57,202.55,3.52033012]
[1756789816161,0.06,202.57,202.56,0.67]
[1756789816568,0.06,202.57,202.56,5.60680884]
[1756789816963,0.06,202.57,202.56,22.72273297]
[1756789817672,0.06,202.57,202.56,21.45122531]
[1756789818284,0.06,202.57,202.56,19.20240285]
[1756789818497,0.06,202.57,202.56,60.11122531]
[1756789818655,0.06,202.57,202.56,21.45122531]
[1756789818855,0.06,202.57,202.56,134.13122531]
[1756789819383,0.06,202.57,202.56,95.45122531]
[1756789819554,0.06,202.57,202.56,134.13122531]
[1756789820384,0.06,202.57,202.56,136.10912231]
[1756789822777,0.06,202.57,202.56,93.20240285]
[1756789823165,0.06,202.57,202.56,131.88240285]
[1756789824264,0.06,202.57,202.56,134.13122531]
[1756789828673,0.06,202.57,202.56,136.10912231]
[1756789831466,0.06,202.58,202.57,13.59559401]
[1756789831669,0.06,202.6,202.57,97.30807298]
[1756789831981,0.06,202.6,202.59,15.84441647]
[1756789832172,0.06,202.6,202.59,14.08920178]
[1756789832372,0.06,202.6,202.59,17.00802424]
[1756789832690,0.06,202.6,202.59,14.75920178]
[1756789832879,0.06,202.6,202.59,52.86559401]
[1756789833085,0.06,202.6,202.59,55.11441647]
[1756789833772,0.06,202.6,202.59,60.05049426]
[1756789833974,0.06,202.6,202.59,19.2016718]
[1756789834191,0.06,202.6,202.59,57.1316718]
[1756789834382,0.06,202.6,202.59,60.05049426]
[1756789834590,0.06,202.6,202.59,134.05049426]
[1756789835218,0.06,202.6,202.59,131.8016718]
[1756789835397,0.06,202.6,202.59,134.05049426]
[1756789835601,0.06,202.6,202.59,131.8016718]
[1756789835785,0.06,202.6,202.59,134.05049426]
[1756789836590,0.06,202.6,202.59,95.45049426]
[1756789836779,0.06,202.6,202.59,134.03049426]
[1756789837587,0.06,202.6,202.59,95.45049426]
[1756789837784,0.06,202.6,202.59,134.03049426]
[1756789842312,0.06,202.6,202.59,132.53049426]
[1756789843198,0.06,202.6,202.59,130.2816718]
[1756789843600,0.06,202.6,202.59,91.7016718]
[1756789843794,0.06,202.6,202.59,129.5716718]
[1756789844013,0.06,202.6,202.59,131.5493728]
[1756789844395,0.06,202.6,202.59,75.977701]
[1756789844703,0.34,202.6,202.59,112.54]
[1756789845288,0.34,202.6,202.55,13.59559401]
[1756789845489,0.34,202.6,202.56,38.54]
[1756789845705,0.06,202.6,202.56,38.54]
[1756789846412,0.34,202.6,202.56,38.54]
[1756789848122,0.06,202.6,202.56,38.54]
[1756789848333,0.28,202.59,202.54,0.03]
[1756789848497,26.28,202.59,202.54,0.03]
[1756789849003,39.905594,202.59,202.54,0.03]
[1756789849399,4.93632145,202.58,202.54,0.03]
[1756789849600,8.24845619,202.58,202.54,0.03]
[1756789849805,0.28,202.58,202.54,0.03]
[1756789850020,0.28,202.57,202.54,0.03]
[1756789850326,0.28,202.56,202.54,0.03]
[1756789850708,3.59315843,202.58,202.54,0.03]
[1756789850917,0.28,202.58,202.54,0.03]
[1756789851311,26.28,202.59,202.54,0.03]
[1756789851646,26.0,202.59,202.54,0.69]
[1756789852004,26.28,202.59,202.54,0.69]
[1756789852427,26.28,202.59,202.54,0.03]
[1756789853025,0.28,202.58,202.54,0.03]
[1756789853203,0.34,202.58,202.54,0.03]
[1756789853732,0.06,202.58,202.54,0.03]
[1756789854436,0.34,202.58,202.54,0.03]
[1756789856219,0.06,202.58,202.54,0.03]
[1756789856622,5.27632299,202.58,202.54,0.03]
[1756789857030,0.28,202.57,202.54,0.03]
[1756789857343,0.28,202.56,202.54,0.03]
[1756789858239,4.99635967,202.58,202.54,0.03]
[1756789858427,0.34,202.58,202.54,0.03]
[1756789858614,0.34,202.58,202.55,0.66]
[1756789858615,29.37648686,202.58,202.55,0.66]
[1756789858823,26.06,202.58,202.54,0.03]
[1756789859023,26.34,202.58,202.54,0.03]
[1756789859629,26.06,202.58,202.54,0.03]
[1756789859938,26.06,202.58,202.54,0.69]
[1756789860534,0.06,202.58,202.55,0.66]
[1756789861719,0.06,202.58,202.56,0.66]
[1756789861919,0.06,202.58,202.57,0.66]
[1756789862335,0.06,202.58,202.54,13.62559401]
[1756789862535,0.06,202.58,202.55,0.66]
[1756789862731,0.06,202.58,202.56,0.66]
[1756789863245,0.06,202.58,202.54,17.00503201]
[1756789863436,0.06,202.58,202.56,0.66]
[1756789864649,0.06,202.58,202.56,5.59679438]
[1756789865044,0.06,202.58,202.57,74.0]
[1756789866853,0.06,202.58,202.57,79.65656513]
[1756789867039,0.06,202.58,202.57,95.5009816]
[1756789867228,0.06,202.58,202.57,98.8804196]
[1756789867429,0.06,202.58,202.57,135.19159714]
[1756789868148,0.06,202.58,202.57,77.379438]
[1756789868346,0.06,202.58,202.57,74.0]
[1756789868946,0.06,202.58,202.57,79.65656513]
[1756789869942,0.06,202.58,202.57,74.0]
[1756789872932,0.06,202.58,202.57,79.65656513]
[1756789873640,0.06,202.58,202.57,93.25215914]
[1756789873844,0.06,202.58,202.57,95.23025114]
[1756789874153,0.06,202.58,202.57,23.97273011]
[1756789874352,0.06,202.58,202.57,23.4790736]
[1756789874936,0.06,202.58,202.57,21.23025114]
[1756789875137,0.06,202.58,202.57,59.77025114]
[1756789876221,0.06,202.58,202.57,43.47656513]
[1756789876851,0.06,202.58,202.57,44.19656513]
[1756789877042,0.06,202.58,202.57,118.19656513]
[1756789877242,0.06,202.58,202.57,131.79215914]
[1756789878427,0.06,202.58,202.57,133.77025114]
[1756789878626,0.06,202.58,202.57,137.2841044]
[1756789880641,0.06,202.58,202.57,63.2841044]
[1756789880848,1e-08,202.58,202.57,63.77776091]
[1756789881267,1e-08,202.58,202.57,60.26390765]
[1756789881468,1e-08,202.58,202.57,63.77776091]
[1756789882652,1e-08,202.58,202.56,4.93680884]
[1756789882834,1e-08,202.58,202.57,39.46]
[1756789883037,1e-08,202.58,202.57,53.05559401]
[1756789883673,1e-08,202.58,202.57,130.56944727]
[1756789884547,1e-08,202.58,202.57,135.5060124]
[1756789884954,1e-08,202.58,202.57,131.99215914]
[1756789888458,1e-08,202.58,202.57,133.96986014]
[1756789888849,1e-08,202.58,202.57,137.4837134]
[1756789890151,1e-08,202.58,202.57,63.4837134]
[1756789890544,1e-08,202.58,202.57,63.5137134]
[1756789892554,1e-08,202.58,202.57,143.8137134]
[1756789893174,1e-08,202.58,202.57,217.8137134]
[1756789893961,0.06,202.68,202.6,39.59559401]
[1756789894294,1e-08,202.64,202.62,37.10944727]
[1756789894454,1e-08,202.64,202.63,56.2829576]
[1756789894775,0.06,202.68,202.66,39.59559401]
[1756789894967,0.34,202.67,202.66,38.72]
[1756789895372,0.34,202.67,202.65,38.74]
[1756789895685,0.28,202.66,202.59,13.59559401]
[1756789895864,0.06,202.67,202.62,14.832027]
[1756789895865,0.28,202.65,202.62,14.832027]
[1756789896054,0.28,202.65,202.63,38.74]
[1756789896968,0.34,202.67,202.63,38.74]
[1756789897276,0.28,202.66,202.63,112.74]
[1756789897649,0.06,202.67,202.63,112.74]
[1756789897870,0.28,202.66,202.63,112.74]
[1756789898073,0.28,202.65,202.63,74.0]
[1756789898269,0.28,202.64,202.63,74.0]
[1756789898874,5.21485984,202.64,202.58,4.994172]
[1756789899083,0.28,202.63,202.58,38.74]
[1756789899286,0.28,202.62,202.57,38.79]
[1756789899468,0.28,202.61,202.57,38.79]
[1756789899780,0.28,202.6,202.57,38.79]
[1756789901377,4.994173,202.65,202.57,38.79]
[1756789901378,0.28,202.59,202.57,0.03]
[1756789901677,26.0,202.62,202.57,74.03]
[1756789901860,0.28,202.62,202.57,78.96649249]
[1756789902053,0.28,202.61,202.57,74.03]
[1756789902256,0.28,202.61,202.57,112.77]
[1756789902564,30.994173,202.65,202.57,117.70648841]
[1756789902864,26.0,202.65,202.59,4.93607779]
[1756789903182,31.21463181,202.65,202.59,43.67607779]
[1756789903489,26.28,202.65,202.59,43.67607779]
[1756789905387,26.0,202.65,202.59,44.39607779]
[1756789906085,0.28,202.64,202.59,38.74]
[1756789906377,0.28,202.63,202.57,38.73]
[1756789906595,0.28,202.63,202.57,43.66655349]
[1756789906956,31.21469224,202.65,202.57,44.38655349]
[1756789907472,26.0,202.65,202.58,0.72]
[1756789908973,0.06,202.63,202.58,74.72]
[1756789909175,0.06,202.63,202.6,4.93583415]
[1756789909680,0.06,202.63,202.61,0.72]
[1756789909863,0.28,202.62,202.58,74.0]
[1756789910486,0.06,202.63,202.58,74.0]
[1756789910684,0.34,202.63,202.58,74.0]
[1756789912475,5.27519722,202.63,202.58,74.0]
[1756789912867,5.27519722,202.63,202.57,4.96648458]
[1756789914190,0.06,202.63,202.58,14.31559401]
[1756789914376,0.06,202.63,202.59,0.72]
[1756789914582,0.06,202.63,202.6,13.59559401]
[1756789914779,0.06,202.63,202.61,0.72]
[1756789915181,0.06,202.63,202.62,0.72]
[1756789915976,0.06,202.63,202.62,74.72]
[1756789916184,0.06,202.63,202.62,79.65534695]
[1756789920284,0.06,202.63,202.62,74.72]
[1756789921900,0.06,202.63,202.62,79.65534695]
[1756789923394,0.06,202.63,202.62,93.25094096]
[1756789924501,0.06,202.63,202.62,96.76479422]
[1756789924804,0.06,202.63,202.62,93.25094096]
[1756789926178,0.06,202.63,202.62,96.76479422]
[1756789927399,1e-08,202.63,202.62,23.25832891]
[1756789927584,1e-08,202.65,202.64,39.59559401]
[1756789927912,1e-08,202.65,202.64,82.30293325]
[1756789928090,1e-08,202.66,202.65,43.10944727]
[1756789928297,1e-08,202.66,202.65,43.78944727]
[1756789930391,1e-08,202.66,202.65,122.7240636]
[1756789932305,1e-08,202.66,202.65,92.53021034]
[1756789932507,0.28000001,202.66,202.65,74.0]
[1756789932681,0.28000001,202.66,202.61,4.93539963]
[1756789932883,0.28,202.65,202.62,37.42]
[1756789933289,0.28,202.65,202.61,43.63548301]
[1756789934911,1e-08,202.66,202.61,43.63548301]
[1756789935092,0.28000001,202.66,202.61,43.63548301]
[1756789935609,0.28,202.65,202.61,117.63548301]
[1756789937622,1e-08,202.66,202.61,117.63548301]
[1756789937826,1e-08,202.66,202.62,0.68]
[1756789938023,1e-08,202.66,202.63,38.66]
[1756789938534,1e-08,202.66,202.64,0.68]
[1756789938902,1e-08,202.66,202.63,38.66]
[1756789939103,1e-08,202.66,202.64,0.68]
[1756789939510,1e-08,202.66,202.65,0.68]
[1756789940103,1e-08,202.66,202.65,44.27461633]
[1756789941326,1e-08,202.66,202.65,57.87021034]
[1756789941528,1e-08,202.66,202.65,60.11777726]
[1756789941721,1e-08,202.66,202.65,57.87021034]
[1756789944618,1e-08,202.66,202.65,131.87021034]